Cogmind - Beta 12 @@@ ROGUE MODE // 2023.05.12 @ 05:53:11 Player: deadnoob Result: Destroyed by Y-45 Defender with Beam Rifle Performance ------------- Evolutions (2) 1000 Regions Visited (8) 1600 Robots Destroyed (147) 735 Value Destroyed (3476) 3476 Prototype IDs (43) 860 Alien Tech Used (0) 0 Bonus (136) 136 TOTAL SCORE: 7807 Bonus ------- High Alert Combat Kills 101 Follower Combat Kills 157 Aligned with FarCom 300 Friendly Fire -422 Cogmind --------- Core Integrity 0/550 Matter 20/300 Energy 149/170 System Corruption 1% Temperature Cool (9) Movement Treading (320) Ox2 Location -8/Storage Parts ------- > --- POWER (1) -------- Light Neutrino Core > --- PROPULSION (3) --- Light Treads Aluminum Leg Aluminum Leg > --- UTILITY (5) ------ High-capacity Storage Unit Experimental Targeting Computer Experimental Core Analyzer Light Armor Plating > --- WEAPON (2) ------- Pulse Rifle Flak Cannon > --- INVENTORY (20) --- Makeshift Power Source Improved VTOL Module Improved VTOL Module Improved VTOL Module Xenon Bombardment Thruster Xenon Bombardment Thruster Xenon Bombardment Thruster Heat Sink Improved Heat Sink Structural Scanner Improved Target Analyzer Advanced Transmission Jammer AS-neutralizer No. 17b Improved Assault Rifle Advanced EMP Blaster Mini Grenade Launcher Missile Launcher Missile Launcher Hammer Peak State ------------ > --- POWER ------------ Reinforced Fission Core > --- PROPULSION ------- Makeshift Leg Advanced Myomer Leg Advanced Myomer Leg > --- UTILITY ---------- High-capacity Storage Unit Experimental Targeting Computer Experimental Core Analyzer Advanced Transmission Jammer Hardened Light Armor Plating > --- WEAPON ----------- 8R-AWN's Boregun 8R-AWN's Boregun > --- INVENTORY -------- Makeshift Power Source Makeshift Power Source Light Neutrino Core Light Treads Light Treads Light Treads Makeshift Leg Xenon Bombardment Thruster Xenon Bombardment Thruster Xenon Bombardment Thruster Xenon Bombardment Thruster Structural Scanner Improved Target Analyzer Light Armor Plating AS-neutralizer No. 17b Heavy Assault Rifle Missile Launcher Missile Launcher Missile Launcher [Rating: 78] Favorites ----------- Power Light Ion Engine Engine Light Ion Engine Power Core Reinforced Fission Core Propulsion Light Treads Treads Light Treads Leg Advanced Myomer Leg Flight Unit Xenon Bombardment Thruster Utility Structural Scanner Device Structural Scanner Storage High-capacity Storage Unit Processor Experimental Targeting Computer Protection Light Armor Plating Weapon Light Cannon Energy Gun Medium Laser Ballistic Gun 8R-AWN's Boregun Ballistic Cannon Light Cannon Launcher Missile Launcher Impact Weapon Hammer Slashing Weapon Blade Saw Special Melee Weapon Datajack Build | -11 -10 -10 -9 -9 -9 -8 -8 -8 ------- Run | Jun Mat Min Mat Min Exi Min Mat Sto Slots Evolved 4 | . . . 2 . . . 2 . Power . | . . . . . . . . . Propulsion 1 | . . . . . . . 1 . Utility 3 | . . . 2 . . . 1 . Weapon . | . . . . . . . . . Parts Attached 131 | 1 10 9 20 8 26 . 28 29 Power 12 | . 2 1 2 . 3 . 1 3 Engine 9 | . 2 1 2 . 2 . . 2 Core 3 | . . . . . 1 . 1 1 Reactor . | . . . . . . . . . Propulsion 26 | . 2 . 4 . 6 . 4 10 Treads 16 | . 2 . 4 . 4 . 1 5 Leg 8 | . . . . . 2 . 2 4 Wheel . | . . . . . . . . . Hover . | . . . . . . . . . Flight 2 | . . . . . . . 1 1 Utility 35 | . 4 1 3 4 6 . 12 5 Device 12 | . 2 1 2 . . . 5 2 Storage 4 | . 2 . 1 . 1 . . . Processor 2 | . . . . . 1 . 1 . Hackware . | . . . . . . . . . Protection 17 | . . . . 4 4 . 6 3 Artifact . | . . . . . . . . . Weapon 58 | 1 2 7 11 4 11 . 11 11 Energy Gun 4 | . . . 1 . . . . 3 Energy Cannon . | . . . . . . . . . Ballistic Gun 21 | 1 . 2 1 . 8 . 6 3 Ballistic Cannon 14 | . 2 4 3 3 . . . 2 Launcher 9 | . . 1 2 1 1 . 2 2 Special Weapon . | . . . . . . . . . Impact Weapon 3 | . . . . . . . 2 1 Slashing Weapon 6 | . . . 4 . 1 . 1 . Piercing Weapon . | . . . . . . . . . Special Melee Weapon 1 | . . . . . 1 . . . Unidentified Prototypes 4 | . . . 1 . . . 1 2 Parts Lost 38 | . . 2 6 1 10 . 8 11 Power 5 | . . 1 1 . 1 . 1 1 Propulsion 14 | . . . 3 . 4 . 1 6 Utility 11 | . . . . 1 4 . 3 3 Weapon 8 | . . 1 2 . 1 . 3 1 Highest Loss Streak 8 | . . 2 2 1 8 . 6 4 To Critical Strikes 2 | . . . . . 2 . . . Average Slot Usage (%) 94 | . 99 97 98 99 90 100 97 89 Engine 7 | . 14 11 10 11 4 11 . 3 Treads 18 | . 21 28 21 22 20 . 1 11 Leg 5 | . 6 . . . 1 22 25 13 Device 13 | . 13 14 32 19 11 11 5 9 Storage 10 | . 14 14 11 11 9 11 9 9 Processor 3 | . . . . . . 11 17 18 Protection 10 | . . . . 13 21 11 11 6 Ballistic Gun 8 | . 3 . 2 . 14 22 15 7 Ballistic Cannon 9 | . 20 27 3 21 3 . . 1 Slashing Weapon 1 | . . . 13 . . . . . Naked Turns . | . . . . . . . . . Heaviest Build 82 | 12 32 30 59 66 74 62 82 60 Greatest Support 80 | 20 40 40 40 40 60 60 80 60 Greatest Overweight (x) 16 | . 9 . 1 1 1 1 1 16 Average Overweight (x) . | . 1 . . 1 . 1 . . Largest Inventory Capacity 20 | 8 15 15 20 20 20 20 20 20 Average Capacity 17 | 8 13 15 18 20 18 20 20 20 Most Carried 20 | 6 15 15 20 20 20 20 20 20 Average Carried 15 | 5 12 14 17 19 14 20 18 19 Final Capacity 20 | 8 15 15 20 20 20 20 20 20 Final Carried 20 | 5 14 15 20 20 20 20 15 19 Class Distribution -------------------- 75% | Mutant 24% | Scavenger-Mutant Dominant Class ---------------- Mutant | -10/Materials Mutant | -10/Mines Mutant | -9/Materials Mutant | -9/Mines Mutant | -9/Exiles Scavenger-Mutant | -8/Mines Scavenger-Mutant | -8/Materials Scavenger-Mutant | -8/Storage Resources | -11 -10 -10 -9 -9 -9 -8 -8 -8 ----------- Run | Jun Mat Min Mat Min Exi Min Mat Sto Matter Collected 3458 | 200 434 399 186 256 594 140 823 426 Remotely . | . . . . . . . . . Salvage Created 5145 | . 372 467 578 205 455 . 1910 1158 Parts 317 | . 27 34 36 12 66 . 95 47 Haulers Intercepted 9 | . 2 . 2 . . . 2 3 Recyclers Shooed 6 | . . . 2 . . . 2 2 Parts Field Recycled . | . . . . . . . . . Retrieved Matter . | . . . . . . . . . Parts Self-Destructed . | . . . . . . . . . Prevented . | . . . . . . . . . Kills | -11 -10 -10 -9 -9 -9 -8 -8 -8 ------- Run | Jun Mat Min Mat Min Exi Min Mat Sto Combat Hostiles Destroyed 97 | . 7 16 10 3 6 . 30 25 Melee 9 | . . . 5 . . . . 4 Guns 33 | . 4 . 4 . 1 . 22 2 Cannons 28 | . 3 13 1 2 . . . 9 AOE 22 | . . 3 . 1 5 . 7 6 Classes Destroyed 16 | . 6 2 2 . 3 . 3 . Worker 9 | . . 3 1 1 . . 1 3 Builder 2 | . 1 . . . . . 1 . Tunneler 6 | . . 3 . 3 . . . . Hauler 9 | . 2 . 2 . . . 2 3 Recycler 11 | . 1 1 1 . . . 5 3 Mechanic 1 | . . . 1 . . . . . Turret 1 | . . . . . 1 . . . Watcher 5 | . 2 . . . . . 2 1 Swarmer 30 | . 3 12 3 . . . 7 5 Grunt 40 | . 4 4 3 2 . . 14 13 Brawler 2 | . . . . . . . 2 . Duelist 5 | . . . . . . . 2 3 Sentry 14 | . . . 4 2 . . 4 4 Hunter 1 | . . . . . . . 1 . Zionite 7 | . . . . . 7 . . . Assembled 5 | . . . . . 5 . . . Thug 1 | . . 1 . . . . . . Best Kill Streak 13 | . 4 7 3 2 6 . 13 9 Combat Bots Only 13 | . 3 6 3 2 5 . 13 8 Max Kills in Single Turn 5 | . 1 2 1 2 4 . 5 5 Gunslinging 1 | . . . . . . . 1 . Exploded 5 | . . 1 . 1 4 . 5 3 Melee 1 | . . . 1 . . . . 1 Uniques/NPCs Destroyed 4 | . . . . . 4 . . . EX-DEC (-9/Exiles) EX-HEX (-9/Exiles) EX-BIN (-9/Exiles) 8R-AWN (-9/Exiles) Combat | -11 -10 -10 -9 -9 -9 -8 -8 -8 -------- Run | Jun Mat Min Mat Min Exi Min Mat Sto Damage Taken 5965 | . 412 331 825 136 1080 . 1684 1497 Core 806 | . 32 51 59 . 104 . 238 322 Absorbed by Shields . | . . . . . . . . . Core Remaining (%) 75 | 100 . 66 . . . 59 . . Volleys Fired 322 | . 35 47 19 14 112 1 70 24 Largest 2 | . 2 2 2 2 2 2 2 2 Hottest 107 | . 70 70 95 70 60 60 60 107 Shots Fired 605 | . 70 91 35 26 221 2 112 48 Gun 436 | . 38 20 28 . 218 2 108 22 Cannon 151 | . 32 68 5 24 . . . 22 Launcher 18 | . . 3 2 2 3 . 4 4 Special . | . . . . . . . . . Kinetic 551 | . 51 88 20 24 218 2 108 40 Thermal 36 | . 19 . 13 . . . . 4 Explosive 18 | . . 3 2 2 3 . 4 4 Electromagnetic . | . . . . . . . . . Robot Hit Streak 15 | . 9 14 9 6 14 3 10 15 Robot Miss Streak 7 | . 5 7 4 4 6 . 4 3 Penetration Max 2 | . . . . . 1 . 2 . Secondary Targets 1 | . . . . . . . 1 . Max Gunslinging Chain 1 | . . . . . . . 1 . Shots Hit Robots 439 | . 38 50 56 12 128 2 75 78 Core Hits 248 | . 19 31 19 10 48 . 53 68 Critical Kills 31 | . . . . . 3 . 26 2 Critical Parts Destroyed 31 | . . . . . 5 . 19 7 Critical Strikes 81 | . 5 . 10 . 10 . 47 9 Burn 7 | . 5 . 2 . . . . . Destroy 55 | . . . . . 8 . 47 . Smash 9 | . . . . . . . . 9 Sever 10 | . . . 8 . 2 . . . Melee Attacks 142 | . . . 44 . 18 . 17 63 Impact 76 | . . . . . . . 13 63 Slashing 62 | . . . 44 . 14 . 4 . Piercing . | . . . . . . . . . Sneak Attacks 24 | . . . 8 . 4 . . 12 Combat Hostiles . | . . . . . . . . . Follow-up Attacks 2 | . . . 2 . . . . . Damage Inflicted 10025 | . 589 1060 1145 373 1875 26 2294 2663 Guns 3953 | . 313 164 303 . 1421 26 1455 271 Cannons 1808 | . 263 632 76 233 . . . 604 Explosions 1844 | . . 264 19 122 245 . 713 481 Melee 2329 | . . . 747 . 149 . 126 1307 Ramming 91 | . 13 . . 18 60 . . . Kinetic 5305 | . 419 796 133 233 1421 26 1455 822 Thermal 456 | . 157 . 246 . . . . 53 Explosive 1844 | . . 264 19 122 245 . 713 481 Electromagnetic . | . . . . . . . . . Impact 1433 | . . . . . . . 126 1307 Slashing 896 | . . . 747 . 149 . . . Piercing . | . . . . . . . . . Highest Corruption 2 | . . . . . 2 2 . 1 Average Corruption 1 | . . . . . 2 2 . 1 Corruption Purged . | . . . . . . . . . Corruption Blocked . | . . . . . . . . . Effects 33 | . . . . . 27 5 . 1 Message Errors 8 | . . . . . 6 2 . . Matter Fused 7 | . . . . . 5 1 . 1 Heat Flow Errors 5 | . . . . . 5 . . . Energy Discharges 4 | . . . . . 4 . . . Data Loss (minor) 4 | . . . . . 4 . . . Data Loss (major) 1 | . . . . . . 1 . . Misfires 1 | . . . . . 1 . . . Alerts 3 | . . . . . 2 1 . . Overload Shots . | . . . . . . . . . Overflow Damage 424 | . 1 28 . . 18 . 47 330 Projectiles 8 | . 1 7 . . . . . . Explosions 90 | . . 21 . . 18 . 35 16 Melee 326 | . . . . . . . 12 314 Knockbacks 24 | . 5 10 . . 1 . . 8 Impact 6 | . . . . . 1 . . 5 Kinetic 18 | . 5 10 . . . . . 3 Secondary . | . . . . . . . . . Self-Inflicted Damage 331 | . . 60 . 17 42 . 212 . Shots 8 | . . 2 . 1 1 . 4 . Rammed 30 | . 2 . . 2 26 . . . Targets Rammed 33 | . 4 . . 2 27 . . . Kicked 2 | . 2 . . . . . . . Crushed 1 | . . . . . 1 . . . Highest Temperature 250 | . 148 72 107 84 250 21 200 45 Average Temperature 35 | . 33 21 25 30 21 13 57 10 Received Heat Transfer 1602 | . 135 57 213 60 . . 633 504 Siege Activations . | . . . . . . . . . Robots Corrupted . | . . . . . . . . . Combat Hostiles . | . . . . . . . . . Parts Fried 15 | . . . . . . . 1 14 Impact Corruptions 18 | . . . . . . . 1 17 Robots Melted . | . . . . . . . . . Combat Hostiles . | . . . . . . . . . Parts Melted 3 | . 1 . 1 . . . . 1 Heat Transferred 1480 | . 814 . 555 . . . . 111 Parts Sabotaged . | . . . . . . . . . Parts Stolen . | . . . . . . . . . Parts Stripped . | . . . . . . . . . Power Chain Reactions . | . . . . . . . . . Missiles Intercepted . | . . . . . . . . . Alert | -11 -10 -10 -9 -9 -9 -8 -8 -8 ------- Run | Jun Mat Min Mat Min Exi Min Mat Sto Peak Influence 575 | . 197 268 277 112 . . 575 548 Initial 182 | . . 5 31 54 . . . 182 Average 126 | . 53 113 144 51 . . 239 247 Maximum Alert Level 2 | . . 1 1 . . . 2 2 Low Security (%) 78 | 100 100 91 70 100 . 100 39 44 Level 1 18 | . . 8 29 . . . 42 49 Level 2 3 | . . . . . . . 17 5 Level 3 . | . . . . . . . . . Level 4 . | . . . . . . . . . Level 5 . | . . . . . . . . . High Security . | . . . . . . . . . Max Security . | . . . . . . . . . Squads Dispatched 14 | . 2 . 2 . . . 4 6 Investigation 4 | . 1 . 1 . . . 1 1 Extermination . | . . . . . . . . . Reinforcement 4 | . 1 . 1 . . . 1 1 Assault 3 | . . . . . . . 1 2 Garrison 3 | . . . . . . . 1 2 Intercept . | . . . . . . . . . Searches Triggered . | . . . . . . . . . Construction Impeded 1 | . . . . . . . 1 . Haulers Reinforced . | . . . . . . . . . Active Scanning Responses . | . . . . . . . . . Cargo Convoy Interrupts . | . . . . . . . . . Stealth | -11 -10 -10 -9 -9 -9 -8 -8 -8 --------- Run | Jun Mat Min Mat Min Exi Min Mat Sto Distress Signals 10 | . 1 . 3 . . . 4 2 Communications Jammed 1 | . . . . . . . . 1 Distress Signals . | . . . . . . . . . Times Spotted 189 | . 17 14 29 5 46 . 40 38 Peak Tracking Total 14 | . 3 3 4 3 12 . 14 7 Tactical Retreats 32 | . 1 . 5 . 21 . 2 3 Traps | -11 -10 -10 -9 -9 -9 -8 -8 -8 ------- Run | Jun Mat Min Mat Min Exi Min Mat Sto Traps Triggered 1 | . . . . . . . . 1 Indirectly . | . . . . . . . . . Trap Hack Attempts . | . . . . . . . . . Triggered . | . . . . . . . . . Disarmed . | . . . . . . . . . Reprogrammed . | . . . . . . . . . Reused . | . . . . . . . . . Traps Extracted . | . . . . . . . . . Installed . | . . . . . . . . . Triggered 1 | . . . . . . . . 1 Exploded 3 | . . . . . 3 . . . Machines | -11 -10 -10 -9 -9 -9 -8 -8 -8 ---------- Run | Jun Mat Min Mat Min Exi Min Mat Sto Machines Disabled 24 | . . 1 2 1 13 . 5 2 Max in Single Turn 3 | . . 1 1 1 3 . 1 1 Garrison Access 2 | . . . . . . . 1 1 Machines Repaired . | . . . . . . . . . Machines Sabotaged . | . . . . . . . . . Overloaded Fab Kills . | . . . . . . . . . Hacking | -11 -10 -10 -9 -9 -9 -8 -8 -8 --------- Run | Jun Mat Min Mat Min Exi Min Mat Sto Machines Accessed 19 | . 6 1 3 . 2 . 5 2 Terminals 15 | . 5 1 3 . . . 5 1 Fabricators . | . . . . . . . . . Repair Stations . | . . . . . . . . . Recycling Units 1 | . 1 . . . . . . . Scanalyzers . | . . . . . . . . . Garrison Access 1 | . . . . . . . . 1 Total Hacks 44 | . 13 2 8 . 2 . 16 3 Successful 18 | . 6 . 4 . 2 . 4 2 Failed 26 | . 7 2 4 . . . 12 1 Catastrophic 6 | . 1 1 . . . . 4 . Database Lockouts . | . . . . . . . . . Manual 29 | . 9 2 3 . 1 . 14 . Terminals 40 | . 12 2 8 . . . 16 2 Fabricators . | . . . . . . . . . Repair Stations . | . . . . . . . . . Recycling Units 1 | . 1 . . . . . . . Scanalyzers . | . . . . . . . . . Garrison Access 1 | . . . . . . . . 1 Terminal Hacks 14 | . 5 . 3 . 2 . 3 1 Record 1 | . . . . . 1 . . . Robot Analysis 3 | . 2 . 1 . . . . . Prototype ID Bank 1 | . 1 . . . . . . . Open Door 1 | . . . . . . . . 1 Branch Access Points 2 | . . . 1 . . . 1 . Unreport Threat 1 | . . . . . . . 1 . Locate Traps 1 | . 1 . . . . . . . Hauler Manifests 3 | . 1 . 1 . . . 1 . EX-Prototype ID Bank 1 | . . . . . 1 . . . Fabricator Hacks . | . . . . . . . . . Repair Station Hacks . | . . . . . . . . . Recycling Unit Hacks . | . . . . . . . . . Scanalyzer . | . . . . . . . . . Garrison Access Hacks 1 | . . . . . . . . 1 Seal Access 1 | . . . . . . . . 1 Unauthorized Hacks 3 | . 1 . 1 . . . 1 . Terminals 2 | . . . 1 . . . 1 . Track 1 | . . . 1 . . . . . Disrupt 1 | . . . . . . . 1 . Fabricators . | . . . . . . . . . Repair Stations . | . . . . . . . . . Recycling Units 1 | . 1 . . . . . . . Tunnel 1 | . 1 . . . . . . . Scanalyzers . | . . . . . . . . . Garrison Access . | . . . . . . . . . Data Cores Recovered . | . . . . . . . . . Used . | . . . . . . . . . Hacking Detections 13 | . 4 1 3 . . . 5 . Full Trace Events 2 | . . . 1 . . . 1 . Feedback Events . | . . . . . . . . . Feedback Blocked . | . . . . . . . . . Robot Schematics Acquired . | . . . . . . . . . Robots Built . | . . . . . . . . . Authchips . | . . . . . . . . . Time . | . . . . . . . . . Total Robot Build Rating . | . . . . . . . . . Part Schematics Acquired . | . . . . . . . . . Parts Built . | . . . . . . . . . Authchips . | . . . . . . . . . Time . | . . . . . . . . . Total Part Build Rating . | . . . . . . . . . Parts Repaired . | . . . . . . . . . Time . | . . . . . . . . . Parts Recycled . | . . . . . . . . . Recycled Matter . | . . . . . . . . . Retrieved Matter . | . . . . . . . . . Retrieved Components . | . . . . . . . . . Parts Scanalyzed . | . . . . . . . . . Part Schematics Acquired . | . . . . . . . . . Parts Damaged . | . . . . . . . . . Bothacking | -11 -10 -10 -9 -9 -9 -8 -8 -8 ------------ Run | Jun Mat Min Mat Min Exi Min Mat Sto Used RIF Installer . | . . . . . . . . . Robots Hacked 4 | . . . . . 4 . . . Non-combat 3 | . . . . . 3 . . . Combat 1 | . . . . . 1 . . . Robot Hacks Applied 4 | . . . . . 4 . . . parse_system 4 | . . . . . 4 . . . Relay Couplers Released 2 | . . . . . . . 2 . Machine Destruction 2 | . . . . . . . 2 . Fabnet Peak Effective % . | . . . . . . . . . Robots Rewired . | . . . . . . . . . Allies Hacked . | . . . . . . . . . Hacks Repelled . | . . . . . . . . . Allies | -11 -10 -10 -9 -9 -9 -8 -8 -8 -------- Run | Jun Mat Min Mat Min Exi Min Mat Sto Total Allies 6 | . . 1 . 3 . . . 2 Largest Group 3 | . . 1 . 3 . . . 2 Highest-Rated Group 62 | . . 31 . 40 . . . 62 Highest-Rated Ally 31 | . . 31 . 16 . . . 31 Total Orders . | . . . . . . . . . Ally Attacks 37 | . . . . 18 . . . 19 Total Damage 554 | . . . . 216 . . . 338 Kills 5 | . . . . 2 . . . 3 Allies Corrupted . | . . . . . . . . . Allies Melted . | . . . . . . . . . Intel | -11 -10 -10 -9 -9 -9 -8 -8 -8 ------- Run | Jun Mat Min Mat Min Exi Min Mat Sto Robot Analysis Total 3 | . 2 . 1 . . . . . Derelict Logs Recovered 3 | . . 3 . . . . . . Drone Launches . | . . . . . . . . . Drone Recoveries . | . . . . . . . . . Exploration | -11 -10 -10 -9 -9 -9 -8 -8 -8 ------------- Run | Jun Mat Min Mat Min Exi Min Mat Sto Turns Passed 11297 | 2 1789 1149 941 1185 3918 224 994 1095 Spaces Moved 4502 | 1 644 612 312 461 1534 117 461 360 Core 120 | . 119 . . . . . . 1 Treads 3153 | . 240 612 312 461 1387 . . 141 Legs 1229 | 1 285 . . . 147 117 461 218 Wheels . | . . . . . . . . . Hover . | . . . . . . . . . Flight . | . . . . . . . . . Fastest Speed 120 | 120 120 160 160 240 120 190 120 120 Average Speed 201 | 120 205 160 216 240 221 190 147 192 Slowest Speed 850 | 120 500 160 240 240 240 190 200 850 Overloaded Moves . | . . . . . . . . . Propulsion Burnouts . | . . . . . . . . . Robots Hopped . | . . . . . . . . . Cave-ins Triggered . | . . . . . . . . . Exploration Rate (%) 55 | 2 70 97 25 93 90 31 42 47 Regions Visited 8 Branch Regions 5 Pre-discovered Areas 3 | . 1 1 . . 1 . . . Known Exits Taken 2 | . . . 1 . . . 1 . Unknown Exits Taken 6 | 1 1 1 . 1 1 1 . . Scrap Searched 5 | . . 1 . 2 . 2 . . Spaces Dug 63 | . . 14 9 14 13 . 8 5 Terrain Destroyed 174 | . . 27 19 14 20 . 51 43 Melee 12 | . . . . . . . 7 5 Projectile 35 | . . . . . 1 . 34 . AOE 126 | . . 27 19 14 18 . 10 38 Terrain Rammed . | . . . . . . . . . Walls Destroyed . | . . . . . . . . . Machines Disabled . | . . . . . . . . . Actions | -11 -10 -10 -9 -9 -9 -8 -8 -8 --------- Run | Jun Mat Min Mat Min Exi Min Mat Sto Total 5852 | 2 1041 692 458 515 1788 117 634 605 Wait 578 | . 322 21 49 17 29 . 30 110 Move 4494 | . 643 611 311 460 1533 116 460 360 Hop . | . . . . . . . . . Pick Up 88 | . 17 2 14 6 28 . 14 7 Fast Attach 32 | . 2 2 3 1 3 . 4 17 Attach 39 | 1 1 1 6 . 12 . 13 5 Detach 11 | . . 1 . . 2 . 3 5 Swap 60 | . 7 6 11 7 11 . 11 7 Drop 56 | 1 10 1 4 8 13 . 12 7 Fire 322 | . 35 47 19 14 112 1 70 24 Melee 139 | . . . 41 . 18 . 17 63 Ram . | . . . . . . . . . Kick 2 | . 2 . . . . . . . Crush 31 | . 2 . . 2 27 . . . Escape Stasis . | . . . . . . . . . Rewire . | . . . . . . . . . Trap . | . . . . . . . . . Miscellaneous . | . . . . . . . . . Route ------- -11/Junkyard -10/Materials (discovered 2 exits: *Mat / *Min) -10/Mines (discovered 2 exits: *Mat x2) -9/Materials -9/Mines (discovered 3 exits: *Mat x2 / *Exi) -9/Exiles -8/Mines -8/Materials (discovered 2 exits: *Sto x2) -8/Storage History --------- Turn | Location | Event 3 | -11/Junkyard | Discovered new exit (range 0) 3 | -11/Junkyard | Entered Materials 231 | -10/Materials | Discovered new exit (range 16) 303 | -10/Materials | Build established: Mutant 355 | -10/Materials | Discovered new exit (range 9) 1792 | -10/Materials | Entered Mines 1912 | -10/Mines | Received a Rocket Launcher from a helpful Derelict 1982 | -10/Mines | Learned 2 Materials zone layouts 2001 | -10/Mines | Learned Materials emergency access door positions 2014 | -10/Mines | Discovered new exit (range 7) 2046 | -10/Mines | Learned location of Zion (-6) 2129 | -10/Mines | Discovered new exit (range 11) 2154 | -10/Mines | Received a Mining Laser from a helpful Derelict 2941 | -10/Mines | Entered Materials 2941 | -9/Materials | Evolved 2 slots: Utility x2 3101 | -9/Materials | Identified exit to Mines 3882 | -9/Materials | Entered Mines 3927 | -9/Mines | Met a Derelict bent on vengeance 4233 | -9/Mines | Discovered new exit (range 6) 4250 | -9/Mines | Assisted by bots powering up and referring to "LRC-V3" 4627 | -9/Mines | Discovered new exit (range 12) 5046 | -9/Mines | Deemed a non-threat by the Exiles lab entrance 5046 | -9/Mines | Discovered new exit (range 6) 5067 | -9/Mines | Entered Exiles 5127 | -9/Exiles | Met 8R-AWN 5166 | -9/Exiles | Met EX-HEX 5260 | -9/Exiles | Met EX-DEC 5313 | -9/Exiles | Met EX-BIN 5346 | -9/Exiles | Aligned with FarCom system 5349 | -9/Exiles | Given EX-Vault access code 5406 | -9/Exiles | Opened EX-Vault 5519 | -9/Exiles | Warned to stay clear of 0b10 Research branches 5680 | -9/Exiles | Discovered new exit (range 10) 6457 | -9/Exiles | Attacked by the Exiles 6645 | -9/Exiles | Found 8R-AWN's Boregun 6648 | -9/Exiles | Found 8R-AWN's Boregun 6667 | -9/Exiles | Lost 8 parts (4n3u1w) 6826 | -9/Exiles | Destroyed EX-DEC 6832 | -9/Exiles | Destroyed EX-HEX 6882 | -9/Exiles | Destroyed EX-BIN 6959 | -9/Exiles | Found Exp. Core Analyzer 8473 | -9/Exiles | Destroyed 8R-AWN 8520 | -9/Exiles | Found 8R-AWN's Armor/EX 8533 | -9/Exiles | Found AS-neutralizer No. 17b 8538 | -9/Exiles | Found Exp. Targeting Computer 8985 | -9/Exiles | Entered Mines 9031 | -8/Mines | Discovered new exit (range 5) 9052 | -8/Mines | Build established: Scavenger-Mutant 9209 | -8/Mines | Entered Materials 9209 | -8/Materials | Evolved 2 slots: Propulsion x1, Utility x1 9303 | -8/Materials | Discovered new exit (range 6) 9582 | -8/Materials | Garrison activated, responded to threat 9964 | -8/Materials | Identified exit to Storage 10076 | -8/Materials | Lost 6 parts (1n3u2w) 10107 | -8/Materials | Destroyed 13 combat bots 10203 | -8/Materials | Entered Storage 10443 | -8/Storage | Core integrity fell below 50% 10507 | -8/Storage | Core integrity fell below 20% 10514 | -8/Storage | Lost 4 parts (2n2u) 10793 | -8/Storage | Met a pair of Derelict thieves 11139 | -8/Storage | Garrison activated, responded to threat 11185 | -8/Storage | Destroyed 8 combat bots 11191 | -8/Storage | Lost 4 parts (2n1u1w) 11298 | -8/Storage | Destroyed by Y-45 Defender with Beam Rifle Last Messages --------------- 11233_ W-25 Informer destroyed. 11233_ Destroyed Imp. Heat Sink. 11233_ Com. Wheel fried. 11233_ R-06 Scavenger destroyed. 11234_ The unstable cave ceiling collapses. 11236_ G-47 Trooper destroyed. 11236_ S-10 Pest destroyed. 11239_ Y-45 Defender emerges from the garrison. 11239_ The unstable cave ceiling collapses. 11255_ Y-45 Defender destroyed. 11261_ System corrupted: Matter fused (-10). 11264_ Acquired Lgt. Armor Plating. 11269_ Acquired Lgt. Treads. 11284_ The unstable cave ceiling collapses. 11291_ Connecting with Garrison Access... >>Seal Access door sealed. 11291_ R-06 Scavenger collects Imp. Ion Engine. 11292_ S-10 Pest knocked back. 11292_ S-10 Pest destroyed. Map ----- +----------------------------------------------------+ | ????????# !! #T## # #%" "" # #? | | ????????#! !?#### # # [* #+###+######+##? | | ????????####????# ####### # #? ?? | | ????############# ### ??########## """" #? """? | | ????# # ## ???????????# "!! " # """" | | ????# ! ! + ## "???????????# " !""" # """" | | ????# =!] # ## "R" ?#?????# """ !" # | | ????# # / " " #?????# ""! " # """" | | ????# # ## #?????# """" # """" | | ????# / # ## """"" #?????# # ""?? | | ????# # ## """"" #?????# # ???? | | #####+#####+#### ## """"" #????#"########"# ???? | | # #???# #?## ## #????##???????###????? | | # ##### ### # ! #????????????????????? | | + + !a%* #????????????????????? | | # T ####;##### #???????????????? | | " ## #### ! #?#! #???????????????? | | ## #??##+###?# [ #### +???????????????? | | ## #??#T %%#?# k###????????????????????? | | " " ##+### #??### ####k #????????????????????? | | """ #! ! # ##??#!%!## r k# #????????????????????? | | """ # # ##??#! !## % ###????????????????????? | | """ # # ##??#!%!# m ##???????????????????? | | "?" # # #???#! ! ## = """#???????????????????? | | ??? # %+ #???### G"#???????????????????? | | ???###! ###?????# @"""#???????????????????? | | ?????# #???????# #[%%# ##???????????????????? | | ?????# / #???? #%=k# ????????????????????? | | ?????#= #??#""" #=su# #???????????????????? | | ?????######????"" #Y ####???????????????????? | | ???????????????"" /?+ #??????????????????????? | | ??????????????? ? # #??????????????????????? | | ???????????????"" ? # #??????????????????????? | | ????????????????"??? ?# #??????????????????????? | | ??????????????????? ?# ???????????????????????? | | ?????????????????? ??# ???????????????????????? | | ??????????????????##??# ???????????????????????? | | ??????????????????????# ???????????????????????? | | ??????????????????????# ???????????????????????? | | ??????????????????????# ???????????????????????? | | ??????????????????????? ???????????????????????? | | ?????????????????????????????????????????????????? | | ?????????????????????????????????????????????????? | | ?????????????????????????????????????????????????? | | ?????????????????????????????????????????????????? | | ?????????????????????????????????????????????????? | | ?????????????????????????????????????????????????? | | ?????????????????????????????????????????????????? | | ?????????????????????????????????????????????????? | | ?????????????????????????????????????????????????? | +----------------------------------------------------+ Best States ------------- Heat Dissipation 50 Energy Generation 19 Energy Capacity 310 Matter Stores 300 Matter Capacity 300 Sight Range 16 Robot Scan Range 15 Terrain Scan Density 10 Jamming Range 16 Armor Coverage 450 Resistance: TH 10 Evasion (%) 55 Targeting Accuracy 12 Core Analysis 8 Recoil Reduction 2 Item Schematics ----------------- None Robot Schematics ------------------ None Fabricated ------------ Nothing Alien Tech Used ----------------- None Achievements -------------- None Challenges ------------ None Game ------ Seed MolecularTacticalWarhead Manual? 0 Play Time 00:58:01 Cumulative 216.5 hours Start 2023.05.07 @ 22:26:14 End 2023.05.12 @ 05:53:11 Sessions 3 Manual Loads 0 Difficulty Rogue Special Mode None Game No. 299 Rogue 299 Adventurer 0 Explorer 0 Win Type - Total 7 Types 6/0/0/1/0/0/0/0/0 Lore% 82 Gallery% 86 Achievement% 69 Wizard Run 0 Options --------- ASCII 0 Keyboard 0 Movement Numpad Keybinds 0 Fullscreen 2 Font 18/SmallcapsGlow Map View 76x50 Tactical HUD 1 Map Filters NONE Filters NONE Steam 1 RUN: 65bfe571-b323-4bce-b631-464ae113e3ff